fUSD/lending_fUSD_20260628
["ID","MTS","AMOUNT","RATE_DAILY","PERIOD"]
[426598764,1782658240000,-6879.34991866,0.000289,2]
[426598800,1782658240000,-1000.0,0.00029863,7]
[426598767,1782658240000,-508.85,0.00029,2]
[426598768,1782658240000,-160.0,0.00029,2]
[426598766,1782658240000,-500.0,0.00029,2]
[426598779,1782658240000,-303.0,0.00029675,30]
[426598769,1782658240000,-693.16096788,0.00029149,7]
[426598774,1782658240000,-423.0,0.0002967,30]
[426598773,1782658240000,-153.0,0.0002967,30]
[426598772,1782658240000,-158.0,0.0002967,30]
[426598770,1782658240000,-12141.4708811,0.00029344,2]
[426598775,1782658240000,-153.0,0.0002967,30]
[426598771,1782658240000,-1000.0,0.000295,2]
[426598776,1782658240000,-159.0,0.0002967,30]
[426598777,1782658240000,-154.0,0.00029675,30]
[426598798,1782658240000,-1000.0,0.00029863,7]
[426598778,1782658240000,-157.0,0.00029675,30]
[426598803,1782658240000,-1000.0,0.00029863,7]
[426598825,1782658240000,-1000.0,0.00029863,7]
[426598824,1782658240000,-1000.0,0.00029863,7]
[426598827,1782658240000,-1000.0,0.00029863,7]
[426598820,1782658240000,-1000.0,0.00029863,7]
[426598828,1782658240000,-1000.0,0.00029863,7]
[426598801,1782658240000,-1000.0,0.00029863,7]
[426598830,1782658240000,-1000.0,0.00029863,7]
[426598829,1782658240000,-1000.0,0.00029863,7]
[426598832,1782658240000,-1000.0,0.00029863,7]
[426598834,1782658240000,-1000.0,0.00029863,7]
[426598835,1782658240000,-1000.0,0.00029863,7]
[426598833,1782658240000,-1000.0,0.00029863,7]
[426598836,1782658240000,-1000.0,0.00029863,7]
[426598839,1782658240000,-1000.0,0.00029863,7]
[426598838,1782658240000,-1000.0,0.00029863,7]
[426598837,1782658240000,-1000.0,0.00029863,7]
[426598840,1782658240000,-1068.47262983,0.00029863,7]
[426598822,1782658240000,-1000.0,0.00029863,7]
[426598826,1782658240000,-1000.0,0.00029863,7]
[426598831,1782658240000,-1000.0,0.00029863,7]
[426598821,1782658240000,-1000.0,0.00029863,7]
[426598819,1782658240000,-1000.0,0.00029863,7]
[426598804,1782658240000,-1000.0,0.00029863,7]
[426598805,1782658240000,-1000.0,0.00029863,7]
[426598807,1782658240000,-1000.0,0.00029863,7]
[426598806,1782658240000,-1000.0,0.00029863,7]
[426598808,1782658240000,-1000.0,0.00029863,7]
[426598811,1782658240000,-1000.0,0.00029863,7]
[426598809,1782658240000,-1000.0,0.00029863,7]
[426598802,1782658240000,-1000.0,0.00029863,7]
[426598810,1782658240000,-1000.0,0.00029863,7]
[426598813,1782658240000,-1000.0,0.00029863,7]
[426598812,1782658240000,-1000.0,0.00029863,7]
[426598816,1782658240000,-1000.0,0.00029863,7]
[426598815,1782658240000,-1000.0,0.00029863,7]
[426598817,1782658240000,-1000.0,0.00029863,7]
[426598818,1782658240000,-1000.0,0.00029863,7]
[426598823,1782658240000,-1000.0,0.00029863,7]
[426598814,1782658240000,-1000.0,0.00029863,7]
[426598854,1782658241000,-200.0,0.0003,2]
[426598855,1782658241000,-200.0,0.0003,2]
[426598853,1782658241000,-434.81599949,0.0003,2]
[426598851,1782658241000,-12499.98,0.0003,2]
[426598850,1782658241000,-12499.99,0.0003,2]
[426598852,1782658241000,-150.0,0.0003,2]
[426598849,1782658241000,-150.0,0.00029988,30]
[426598847,1782658241000,-2159.4978649,0.00029919,2]
[426598846,1782658241000,-3426.12665851,0.000299,2]
[426598844,1782658241000,-3426.12665851,0.000299,2]
[426598841,1782658241000,-711.14083071,0.000299,2]
[426598842,1782658241000,-3426.12665865,0.000299,2]
[426598845,1782658241000,-3426.12665851,0.000299,2]
[426598843,1782658241000,-3426.12665851,0.000299,2]
[426598848,1782658241000,-3533.7296448,0.00029979,2]
[426598856,1782658241000,-200.0,0.0003,2]
[426598863,1782658241000,-98419.933532,0.00030029,2]
[426598858,1782658241000,-200.0,0.0003,2]
[426598872,1782658241000,-265893.79519938,0.000301,7]
[426598873,1782658241000,-152930.72981313,0.000301,7]
[426598870,1782658241000,-1533.0,0.000301,5]
[426598869,1782658241000,-590.96011488,0.00030099,2]
[426598874,1782658241000,-34258.64583502,0.000301,7]
[426598868,1782658241000,-825.45,0.00030074,2]
[426598866,1782658241000,-6702.0538532,0.00030029,2]
[426598871,1782658241000,-1233.0,0.000301,5]
[426598867,1782658241000,-596.0,0.0003005,2]
[426598865,1782658241000,-2648.1711006,0.00030029,2]
[426598862,1782658241000,-3269.9760777,0.00030029,2]
[426598860,1782658241000,-20940.26964229,0.0003001,2]
[426598859,1782658241000,-269.83335006,0.0003,2]
[426598857,1782658241000,-200.0,0.0003,2]
[426598864,1782658241000,-25784.9787542,0.00030029,2]
[426598861,1782658241000,-472.94619313,0.00030028,2]
[426598877,1782658242000,-559.41121477,0.000301,7]
[426598880,1782658243000,-4901.20782219,0.000301,7]
[426598879,1782658243000,-671.05748858,0.00029953,2]
[426598881,1782658243000,-6116.0646315,0.000301,7]
[426598878,1782658243000,-2755.06916993,0.00029953,2]
[426598885,1782658244000,-320.05,0.000301,7]
[426598886,1782658244000,-2066.8682117,0.000301,7]
[426598884,1782658244000,-6738.85043978,0.000301,7]
[426598883,1782658244000,-45.4636092,0.000301,7]
[426598882,1782658244000,-454.40811811,0.000301,7]
[426598891,1782658246000,-799.4621888,0.000301,7]
[426598889,1782658246000,-10563.65030568,0.000301,7]
[426598890,1782658246000,-1044.02217141,0.000301,7]
[426598892,1782658246000,-2541.92174008,0.000301,7]
[426598894,1782658246000,-1783.65937132,0.000301,7]
[426598893,1782658246000,-509.56010659,0.000301,7]
[426598896,1782658375000,199.66,0.00029327,120]
[426598911,1782658788000,2007.71810528,0.0003736,120]
[426598910,1782658788000,2007.71810528,0.0003736,120]
[426598913,1782658789000,2007.71810528,0.0003736,120]
[426598912,1782658789000,2007.71810528,0.0003736,120]
[426598916,1782658790000,2007.71810528,0.0003736,120]
[426598915,1782658790000,2007.71810528,0.0003736,120]
[426598914,1782658790000,2007.71810528,0.0003736,120]
[426598920,1782658791000,2007.71810528,0.0003736,120]
[426598919,1782658791000,2007.71810528,0.0003736,120]
[426598918,1782658791000,2007.71810528,0.0003736,120]
[426598917,1782658791000,2007.71810528,0.0003736,120]
[426598922,1782658792000,2007.71810528,0.0003736,120]
[426598921,1782658792000,2007.71810528,0.0003736,120]
[426598925,1782658793000,2007.71810528,0.0003736,120]
[426598924,1782658793000,2007.71810528,0.0003736,120]
[426598923,1782658793000,2007.71810528,0.0003736,120]
[426598928,1782658794000,2007.71810528,0.0003736,120]
[426598927,1782658794000,2007.71810528,0.0003736,120]
[426598926,1782658794000,2007.71810528,0.0003736,120]
[426598932,1782658795000,2007.71810528,0.0003736,120]
[426598931,1782658795000,2007.71810528,0.0003736,120]
[426598930,1782658795000,2007.71810528,0.0003736,120]
[426598929,1782658795000,2007.71810528,0.0003736,120]
[426598933,1782658796000,2007.7181053,0.0003736,120]
[426598934,1782658870000,326.507876,0.0003736,120]
[426598935,1782658871000,326.507876,0.0003736,120]
[426598936,1782658871000,326.507876,0.0003736,120]
[426598937,1782658872000,326.507876,0.0003736,120]
[426598939,1782658872000,-151.0,0.0001383,2]
[426598938,1782658872000,-175.30782492,0.0001383,7]
[426598942,1782658872000,-151.0,0.0001383,2]
[426598940,1782658872000,-150.0,0.0001383,2]
[426598941,1782658872000,-153.0,0.0001383,2]
[426598950,1782658872000,-500.0,0.00014012,2]
[426598943,1782658872000,-150.0,0.0001383,2]
[426598946,1782658872000,-150.0,0.00013838,2]
[426598945,1782658872000,-150.0,0.00013832,2]
[426598947,1782658872000,-151.0,0.00013864,2]
[426598949,1782658872000,-151.0,0.00013975,2]
[426598948,1782658872000,-165.26572227,0.00013938,2]
[426598944,1782658872000,-151.0,0.00013831,2]
[426598967,1782658873000,-150.0,0.00014898,2]
[426598966,1782658873000,-5590.59,0.00014877,2]
[426598965,1782658873000,-183.66716346,0.0001466,2]
[426598963,1782658873000,-600.0,0.00014345,2]
[426598962,1782658873000,-172.13,0.00014241,2]
[426598960,1782658873000,-153.0,0.000142,2]
[426598958,1782658873000,-151.0,0.000142,2]
[426598954,1782658873000,-300.0,0.000142,2]
[426598959,1782658873000,-150.0,0.000142,2]
[426598957,1782658873000,-150.0,0.000142,2]
[426598964,1782658873000,-600.0,0.00014345,2]
[426598956,1782658873000,-152.0,0.000142,2]
[426598955,1782658873000,-151.0,0.000142,2]
[426598952,1782658873000,-150.0,0.00014038,2]
[426598951,1782658873000,-600.0,0.00014015,2]
[426598961,1782658873000,-151.0,0.000142,2]
[426598968,1782658873000,-500.0,0.00014899,2]
[426598953,1782658873000,-627.16667634,0.000142,2]
[426598969,1782658873000,-500.0,0.00014899,2]
[426598987,1782658873000,-269.83335005,0.00014931,2]
[426598970,1782658873000,-500.0,0.00014899,2]
[426598986,1782658873000,-156.02381534,0.000149,2]
[426598985,1782658873000,-2500.0,0.000149,2]
[426598984,1782658873000,-172.2714225,0.000149,2]
[426598983,1782658873000,-1159.81985598,0.000149,2]
[426598982,1782658873000,-76040.6861,0.000149,2]
[426598980,1782658873000,-4186.6412,0.000149,2]
[426598981,1782658873000,-62986.05456624,0.000149,2]
[426598977,1782658873000,-370.7596083,0.000149,2]
[426598979,1782658873000,-119458.88025861,0.000149,2]
[426598976,1782658873000,-151.0,0.000149,2]
[426598975,1782658873000,-151.0,0.000149,2]
[426598972,1782658873000,-152.0,0.000149,2]
[426598974,1782658873000,-151.0,0.000149,2]
[426598973,1782658873000,-151.0,0.000149,2]
[426598971,1782658873000,-151.0,0.000149,2]
[426598978,1782658873000,-269.83335006,0.000149,2]
[426598991,1782658874000,-1183.06548016,0.00014999,5]
[426598989,1782658874000,-500.0,0.00014999,2]
[426598988,1782658874000,-269.83335005,0.00014961,2]
[426598990,1782658874000,-611.53413013,0.00014999,2]
[426598992,1782658874000,-623.10999442,0.00014999,2]
[426598993,1782658874000,-300.0,0.00014999,2]
[426598998,1782658874000,326.507876,0.0003736,120]
[426598996,1782658874000,326.507876,0.0003736,120]
[426598995,1782658874000,-1714002.52613117,0.00015,2]
[426598997,1782658874000,326.507876,0.0003736,120]
[426598999,1782658874000,326.507876,0.0003736,120]
[426599000,1782658874000,326.507876,0.0003736,120]
[426599001,1782658874000,326.507876,0.0003736,120]
[426598994,1782658874000,-152.0,0.00014999,2]
[426599003,1782658875000,326.507876,0.0003736,120]
[426599002,1782658875000,326.507876,0.0003736,120]
[426599005,1782658876000,326.507876,0.0003736,120]
[426599004,1782658876000,326.507876,0.0003736,120]
[426599008,1782658877000,326.507876,0.0003736,120]
[426599007,1782658877000,326.507876,0.0003736,120]
[426599006,1782658877000,326.507876,0.0003736,120]
[426599010,1782658878000,326.507876,0.0003736,120]
[426599009,1782658878000,326.507876,0.0003736,120]
[426599011,1782658879000,326.50787,0.0003736,120]
[426599014,1782658885000,-2337.4632715,0.00014814,2]
[426599016,1782658885000,-1992834.61018546,0.00015,2]
[426599015,1782658885000,-2337.4632715,0.00014829,2]
[426599012,1782658885000,-153.0,0.0001383,2]
[426599013,1782658885000,-2337.46327154,0.000148,2]
[426599017,1782658891000,5000.0,0.0003736,120]
[426599018,1782658894000,9035.21877941,0.0003736,120]
[426599022,1782658926000,194934.0,0.0003736,120]
[426599024,1782658929000,269.841433,0.0003736,120]
[426599023,1782658929000,269.841433,0.0003736,120]
[426599026,1782658930000,269.841433,0.0003736,120]
[426599025,1782658930000,269.841433,0.0003736,120]
[426599028,1782658931000,269.841433,0.0003736,120]
[426599027,1782658931000,269.841433,0.0003736,120]
[426599030,1782658932000,269.841433,0.0003736,120]
[426599029,1782658932000,269.841433,0.0003736,120]
[426599031,1782658933000,269.841433,0.0003736,120]
[426599032,1782658933000,269.841433,0.0003736,120]
[426599034,1782658934000,269.841433,0.0003736,120]
[426599033,1782658934000,269.841433,0.0003736,120]
[426599036,1782658935000,269.841433,0.0003736,120]
[426599035,1782658935000,269.841433,0.0003736,120]
[426599038,1782658936000,269.841433,0.0003736,120]
[426599037,1782658936000,269.841433,0.0003736,120]
[426599039,1782658937000,269.841433,0.0003736,120]
[426599040,1782658937000,269.841433,0.0003736,120]
[426599042,1782658938000,269.841433,0.0003736,120]
[426599041,1782658938000,269.841433,0.0003736,120]
[426599046,1782658939000,169.06156734,0.0003736,120]
[426599048,1782658940000,169.06156735,0.0003736,120]
[426599109,1782658979000,150000.0,0.0003736,120]
[426599115,1782659021000,200000.0,0.0003736,120]
[426599116,1782659023000,151.0,0.0003736,120]
[426599119,1782659024000,151.0,0.0003736,120]
[426599118,1782659024000,151.0,0.0003736,120]
[426599117,1782659024000,200000.0,0.0003736,120]
[426599121,1782659025000,267.010327,0.0003736,120]
[426599120,1782659025000,151.0,0.0003736,120]
[426599122,1782659026000,200000.0,0.0003736,120]
[426599123,1782659040000,104038.0,0.0003736,120]
[426599126,1782659068000,723.351178,0.00037447,120]
[426599125,1782659068000,723.351178,0.00037447,120]
[426599128,1782659069000,723.351178,0.00037447,120]
[426599127,1782659069000,723.351178,0.00037447,120]
[426599130,1782659070000,723.351178,0.00037447,120]
[426599129,1782659070000,723.351178,0.00037447,120]
[426599132,1782659071000,723.351178,0.00037447,120]
[426599131,1782659071000,723.351178,0.00037447,120]
[426599133,1782659072000,723.351178,0.00037447,120]
[426599134,1782659074000,723.351178,0.00037447,120]
[426599137,1782659075000,723.351178,0.00037447,120]
[426599136,1782659075000,723.351178,0.00037447,120]
[426599135,1782659075000,723.351178,0.00037447,120]
[426599138,1782659075000,723.351178,0.00037447,120]
[426599140,1782659076000,723.351178,0.00037447,120]
[426599139,1782659076000,723.351178,0.00037447,120]
[426599142,1782659077000,723.351178,0.00037447,120]
[426599141,1782659077000,723.351178,0.00037447,120]
[426599144,1782659078000,723.351181,0.00037447,120]
[426599143,1782659078000,723.351178,0.00037447,120]
[426599154,1782659097000,-150.0,0.00014,2]
[426599153,1782659097000,-150.0,0.00014,2]
[426599152,1782659097000,-151.0,0.00014,2]
[426599155,1782659097000,-153.0,0.00014,2]
[426599146,1782659097000,-151.0,0.0001383,2]
[426599149,1782659097000,-250.0,0.00014,2]
[426599148,1782659097000,-151.0,0.0001383,2]
[426599147,1782659097000,-152.0,0.0001383,2]
[426599145,1782659097000,-375.93396121,0.0001383,7]
[426599151,1782659097000,-150.0,0.00014,2]
[426599157,1782659097000,-375.93396121,0.00014107,7]
[426599150,1782659097000,-153.0,0.00014,2]
[426599159,1782659097000,-600.0,0.00014414,2]
[426599156,1782659097000,-1152.01,0.000141,2]
[426599168,1782659097000,-500.0,0.00014563,2]
[426599167,1782659097000,-231.80973191,0.00014563,2]
[426599164,1782659097000,-370.15167128,0.00014563,2]
[426599165,1782659097000,-500.0,0.00014563,2]
[426599166,1782659097000,-500.0,0.00014563,2]
[426599162,1782659097000,-6329.03325787,0.00014563,2]
[426599160,1782659097000,-1152.01,0.00014453,2]
[426599161,1782659097000,-375.93396121,0.00014522,7]
[426599158,1782659097000,-1062.6339625,0.00014374,2]
[426599163,1782659097000,-500.0,0.00014563,2]
[426599176,1782659098000,-500.0,0.00014563,2]
[426599180,1782659098000,-500.0,0.00014563,2]
[426599178,1782659098000,-500.0,0.00014563,2]
[426599177,1782659098000,-500.0,0.00014563,2]
[426599175,1782659098000,-500.0,0.00014563,2]
[426599170,1782659098000,-500.0,0.00014563,2]
[426599174,1782659098000,-500.0,0.00014563,2]
[426599172,1782659098000,-422.21365476,0.00014563,2]
[426599171,1782659098000,-500.0,0.00014563,2]
[426599181,1782659098000,-500.0,0.00014563,2]
[426599169,1782659098000,-500.0,0.00014563,2]
[426599173,1782659098000,-500.0,0.00014563,2]
[426599182,1782659098000,-500.0,0.00014563,2]
[426599179,1782659098000,-500.0,0.00014563,2]
[426599184,1782659098000,-500.0,0.00014563,2]
[426599183,1782659098000,-419.74967362,0.00014563,2]
[426599195,1782659098000,-500.0,0.00014563,2]
[426599196,1782659098000,-500.0,0.00014563,2]
[426599194,1782659098000,-500.0,0.00014563,2]
[426599192,1782659098000,-500.0,0.00014563,2]
[426599191,1782659098000,-500.0,0.00014563,2]
[426599193,1782659098000,-500.0,0.00014563,2]
[426599188,1782659098000,-500.0,0.00014563,2]
[426599189,1782659098000,-500.0,0.00014563,2]
[426599187,1782659098000,-500.0,0.00014563,2]
[426599186,1782659098000,-500.0,0.00014563,2]
[426599185,1782659098000,-500.0,0.00014563,2]
[426599190,1782659098000,-500.0,0.00014563,2]
[426599205,1782659099000,-500.0,0.00014563,2]
[426599209,1782659099000,-500.0,0.00014563,2]
[426599207,1782659099000,-500.0,0.00014563,2]
[426599208,1782659099000,-500.0,0.00014563,2]
[426599206,1782659099000,-500.0,0.00014563,2]
[426599204,1782659099000,-500.0,0.00014563,2]
[426599197,1782659099000,-500.0,0.00014563,2]
[426599201,1782659099000,-277.7470626,0.00014563,2]
[426599202,1782659099000,-500.0,0.00014563,2]
[426599200,1782659099000,-500.0,0.00014563,2]
[426599199,1782659099000,-500.0,0.00014563,2]
[426599198,1782659099000,-500.0,0.00014563,2]
[426599210,1782659099000,-500.0,0.00014563,2]
[426599203,1782659099000,-500.0,0.00014563,2]
[426599211,1782659099000,-500.0,0.00014563,2]
[426599226,1782659099000,-150.0,0.00014899,2]
[426599213,1782659099000,-500.0,0.00014563,2]
[426599225,1782659099000,-160.0,0.00014854,2]
[426599227,1782659099000,-500.0,0.00014899,2]
[426599224,1782659099000,-151.0,0.00014835,2]
[426599223,1782659099000,-150.0,0.0001483,2]
[426599222,1782659099000,-152.0,0.00014829,2]
[426599221,1782659099000,-151.0,0.00014828,2]
[426599212,1782659099000,-500.0,0.00014563,2]
[426599218,1782659099000,-6953.3884,0.000148,2]
[426599219,1782659099000,-250.3392,0.000148,2]
[426599216,1782659099000,-500.0,0.00014563,2]
[426599217,1782659099000,-46456.7,0.00014564,2]
[426599215,1782659099000,-500.0,0.00014563,2]
[426599214,1782659099000,-500.0,0.00014563,2]
[426599220,1782659099000,-1152.01,0.00014805,2]
[426599242,1782659100000,-424.59544625,0.00014998,2]
[426599243,1782659100000,-500.0,0.00014998,2]
[426599241,1782659100000,-888.5068737,0.00014992,2]
[426599240,1782659100000,-264.260098,0.00014992,2]
[426599239,1782659100000,-165.18892212,0.0001497,2]
[426599238,1782659100000,-375.93396121,0.00014937,7]
[426599237,1782659100000,-208.65825581,0.000149,2]
[426599233,1782659100000,-23838.76035831,0.000149,2]
[426599235,1782659100000,-773.21323732,0.000149,2]
[426599245,1782659100000,-500.0,0.00014998,2]
[426599232,1782659100000,-2500.0,0.000149,2]
[426599231,1782659100000,-247.1730722,0.000149,2]
[426599229,1782659100000,-500.0,0.00014899,2]
[426599228,1782659100000,-3054.928,0.00014899,2]
[426599236,1782659100000,-8632.20294896,0.000149,2]
[426599244,1782659100000,-356.50028954,0.00014998,2]
[426599230,1782659100000,-500.0,0.00014899,2]
[426599247,1782659100000,-205.80947316,0.00014998,2]
[426599246,1782659100000,-407.78482995,0.00014998,2]
[426599263,1782659100000,-500.0,0.00014999,2]
[426599262,1782659100000,-500.0,0.00014999,2]
[426599261,1782659100000,-500.0,0.00014999,2]
[426599260,1782659100000,-500.0,0.00014999,2]
[426599259,1782659100000,-500.0,0.00014999,2]
[426599258,1782659100000,-978.7588181,0.00014999,2]
[426599257,1782659100000,-500.0,0.00014998,2]
[426599234,1782659100000,-431.15156273,0.000149,2]
[426599254,1782659100000,-500.0,0.00014998,2]
[426599256,1782659100000,-500.0,0.00014998,2]
[426599255,1782659100000,-500.0,0.00014998,2]
[426599253,1782659100000,-500.0,0.00014998,2]
[426599251,1782659100000,-500.0,0.00014998,2]
[426599252,1782659100000,-500.0,0.00014998,2]
[426599250,1782659100000,-500.0,0.00014998,2]
[426599248,1782659100000,-500.0,0.00014998,2]
[426599249,1782659100000,-500.0,0.00014998,2]
[426599264,1782659101000,-500.0,0.00014999,2]
[426599265,1782659101000,-500.0,0.00014999,2]
[426599268,1782659101000,-500.0,0.00014999,2]
[426599267,1782659101000,-496.14,0.00014999,2]
[426599269,1782659101000,-500.0,0.00014999,2]
[426599266,1782659101000,-500.0,0.00014999,2]
[426599271,1782659101000,-500.0,0.00014999,2]
[426599272,1782659101000,-761630.83663074,0.00015,2]
[426599273,1782659101000,-152.0,0.00015,2]
[426599274,1782659101000,-151.0,0.00015,2]
[426599275,1782659101000,-1085333.99872373,0.00015,2]
[426599270,1782659101000,-500.0,0.00014999,2]
[426599279,1782659118000,200000.0,0.00037447,120]
[426599281,1782659130000,151149.0,0.00037447,120]
[426599283,1782659138000,843.156787,0.00037447,120]
[426599284,1782659139000,843.156787,0.00037447,120]
[426599285,1782659139000,843.156787,0.00037447,120]
[426599287,1782659140000,843.156787,0.00037447,120]
[426599286,1782659140000,843.156787,0.00037447,120]
[426599290,1782659141000,843.156787,0.00037447,120]
[426599289,1782659141000,843.156787,0.00037447,120]
[426599288,1782659141000,843.156787,0.00037447,120]
[426599292,1782659142000,843.156787,0.00037447,120]
[426599291,1782659142000,843.156787,0.00037447,120]
[426599295,1782659143000,843.156787,0.00037447,120]
[426599294,1782659143000,843.156787,0.00037447,120]
[426599293,1782659143000,843.156787,0.00037447,120]
[426599297,1782659144000,843.156787,0.00037447,120]
[426599296,1782659144000,843.156787,0.00037447,120]
[426599299,1782659145000,843.156787,0.00037447,120]
[426599298,1782659145000,843.156787,0.00037447,120]
[426599302,1782659146000,843.156781,0.00037447,120]
[426599301,1782659146000,843.156787,0.00037447,120]
[426599300,1782659146000,843.156787,0.00037447,120]
[426599303,1782659155000,-291.13530949,0.00013315,2]
[426599304,1782659169000,4430.38,0.00037447,120]
[426599305,1782659172000,4430.38,0.00037447,120]
[426599314,1782659227000,-475.56843703,0.00013315,2]
[426599316,1782659241000,108743.0,0.00037447,120]
[426599318,1782659243000,841.37753905,0.00037447,120]
[426599319,1782659254000,-1779.91234847,0.00013315,2]
[426599325,1782659262000,100000.0,0.00037447,120]
[426599326,1782659274000,146147.0,0.00037447,120]
[426599330,1782659304000,412.31642728,0.00037447,120]
[426599335,1782659363000,-3478.04524158,0.00013315,2]
[426599336,1782659364000,-987.71866343,0.00013315,2]
[426599338,1782659364000,-602.5,0.00013385,2]
[426599337,1782659364000,-160.0,0.00013328,2]
[426599341,1782659364000,-150.0,0.00013488,2]
[426599340,1782659364000,-150.0,0.00013488,2]
[426599339,1782659364000,-1297.87,0.00013407,2]
[426599342,1782659364000,-150.0,0.00013488,2]
[426599345,1782659364000,-150.0,0.00013488,2]
[426599344,1782659364000,-150.64976734,0.00013488,2]
[426599346,1782659364000,-150.0,0.00013488,2]
[426599347,1782659364000,-150.0,0.00013488,2]
[426599348,1782659364000,-150.0,0.00013488,2]
[426599343,1782659364000,-150.0,0.00013488,2]
[426599349,1782659368000,-150.0,0.00013527,2]
[426599350,1782659368000,-150.0,0.00013567,2]
[426599352,1782659368000,-150.0,0.00013613,2]
[426599353,1782659368000,-150.0,0.00013645,2]
[426599355,1782659368000,-150.0,0.00013685,2]
[426599354,1782659368000,-150.0,0.00013654,2]
[426599356,1782659368000,-4340.35998527,0.00013699,2]
[426599351,1782659368000,-150.0,0.00013606,2]
[426599374,1782659369000,-150.0,0.00013987,2]
[426599373,1782659369000,-150.0,0.00013961,2]
[426599371,1782659369000,-150.0,0.00013921,2]
[426599370,1782659369000,-150.0,0.00013916,2]
[426599368,1782659369000,-150.0,0.00013862,2]
[426599369,1782659369000,-150.0,0.00013882,2]
[426599367,1782659369000,-150.0,0.00013843,2]
[426599366,1782659369000,-151.0,0.0001383,2]
[426599365,1782659369000,-150.0,0.00013821,2]
[426599364,1782659369000,-150.0,0.00013803,2]
[426599361,1782659369000,-150.0,0.00013737,2]
[426599360,1782659369000,-150.0,0.00013737,2]
[426599362,1782659369000,-150.0,0.00013737,2]
[426599359,1782659369000,-150.0,0.00013724,2]
[426599358,1782659369000,-150.0,0.00013702,2]
[426599357,1782659369000,-723.14001473,0.00013699,2]
[426599363,1782659369000,-150.0,0.00013764,2]
[426599376,1782659369000,-150.0,0.00013987,2]
[426599381,1782659369000,-150.0,0.00014112,2]
[426599375,1782659369000,-150.0,0.00013987,2]
[426599372,1782659369000,-150.0,0.00013961,2]
[426599393,1782659369000,-150.0,0.00014237,2]
[426599394,1782659369000,-150.0,0.00014276,2]
[426599392,1782659369000,-150.0,0.00014237,2]
[426599391,1782659369000,-150.0,0.00014237,2]
[426599390,1782659369000,-150.0,0.00014237,2]
[426599388,1782659369000,-500.0,0.00014237,2]
[426599386,1782659369000,-150.0,0.00014158,2]
[426599389,1782659369000,-150.0,0.00014237,2]
[426599385,1782659369000,-150.0,0.00014154,2]
[426599384,1782659369000,-150.0,0.0001413,2]
[426599382,1782659369000,-150.0,0.00014119,2]
[426599383,1782659369000,-150.0,0.00014122,2]
[426599380,1782659369000,-150.0,0.00014079,2]
[426599379,1782659369000,-150.0,0.0001404,2]
[426599378,1782659369000,-150.0,0.00014,2]
[426599387,1782659369000,-150.0,0.00014198,2]
[426599377,1782659369000,-150.0,0.00013987,2]
[426599406,1782659370000,-150.0,0.00014487,2]
[426599409,1782659370000,-150.0,0.00014558,2]
[426599410,1782659370000,-150.3383746,0.00014563,2]
[426599412,1782659370000,-500.0,0.00014563,2]
[426599408,1782659370000,-150.0,0.00014552,2]
[426599411,1782659370000,-150.0,0.00014563,2]
[426599404,1782659370000,-150.0,0.00014487,2]